bitfinex/quotes_SOLUSD_20240716
["timestamp","ask_amount","ask_price","bid_price","bid_amount"]
[1721164452563,30.04,160.05,159.95,31.0706]
[1721164452766,6.2492,160.02,159.96,6.2514]
[1721164453279,0.5,160.01,159.95,15.4409]
[1721164453573,6.2507,159.98,159.95,15.4409]
[1721164453787,6.2504,159.99,159.96,1.25017315]
[1721164454155,6.25,160.0,159.96,1.25017315]
[1721164454474,6.25,160.0,159.95,15.4409]
[1721164455193,0.5,160.01,159.96,1.25004993]
[1721164455374,20.0,160.01,159.96,7.50154993]
[1721164455668,20.5,160.01,159.97,45.0]
[1721164455872,20.0,160.01,159.96,45.0]
[1721164456079,6.2502,160.0,159.96,46.25004619]
[1721164456778,26.2496,160.01,159.96,46.25004619]
[1721164457157,6.25,160.0,159.96,45.0]
[1721164457553,20.0,160.01,159.96,45.0]
[1721164457772,20.0,160.01,159.96,51.2515]
[1721164458878,20.0,160.01,159.97,1.24999413]
[1721164459086,26.2497,160.01,159.97,1.24999413]
[1721164459252,26.2497,160.01,159.96,45.0]
[1721164459452,6.2501,160.0,159.96,45.0]
[1721164459656,6.2501,160.0,159.96,46.25007605]
[1721164460370,6.2504,159.99,159.96,45.0]
[1721164460773,6.25,160.0,159.96,45.0]
[1721164461081,6.25,160.0,159.96,46.25007626]
[1721164462788,0.5,160.04,159.97,1.24994726]
[1721164462970,36.288,160.05,159.98,0.17]
[1721164463170,6.2485,160.04,159.98,6.4204]
[1721164463482,6.2493,160.02,159.99,45.0]
[1721164463815,30.04,160.05,159.98,45.0]
[1721164463960,6.2471,160.08,160.0,1.24966025]
[1721164464157,6.2465,160.09,160.03,6.2485]
[1721164464369,6.2469,160.08,160.04,46.24942812]
[1721164464890,6.2467,160.09,160.05,1.24940965]
[1721164465184,6.2468,160.08,160.05,1.24940965]
[1721164465382,6.2465,160.09,160.04,51.2483]
[1721164465560,0.5,160.11,160.06,1.24942115]
[1721164465767,0.5,160.11,160.06,46.24933072]
[1721164466281,6.2462,160.1,160.06,46.24933072]
[1721164466484,6.2462,160.1,160.06,1.24933072]
[1721164466679,0.5,160.13,160.06,6.2475]
[1721164466895,0.5,160.13,160.07,45.0]
[1721164467069,6.2465,160.09,160.05,45.0]
[1721164467261,6.2462,160.1,160.05,45.0]
[1721164467793,6.2458,160.11,160.05,51.2479]
[1721164468094,6.7462,160.1,160.05,45.0]
[1721164468261,6.2462,160.1,160.05,45.0]
[1721164468687,6.2462,160.1,160.05,51.2479]
[1721164468984,6.2457,160.11,160.05,51.2479]
[1721164469770,0.5,160.1,160.05,51.2479]
[1721164469965,6.2457,160.11,160.05,51.2479]
[1721164470694,6.2454,160.12,160.06,1.2493304]
[1721164471807,6.2454,160.12,160.06,7.4968304]
[1721164471979,6.2457,160.11,160.07,45.0]
[1721164472296,6.2457,160.11,160.08,1.2492288]
[1721164473208,6.2457,160.11,160.07,45.0]
[1721164473382,6.2457,160.11,160.07,46.24922481]
[1721164473698,6.2457,160.11,160.08,1.24922826]
[1721164474578,6.2457,160.11,160.07,46.24920814]
[1721164474770,6.2457,160.11,160.07,45.0]
[1721164474975,6.2461,160.1,160.07,45.0]
[1721164475174,6.2461,160.1,160.06,45.0]
[1721164475406,6.2458,160.11,160.06,51.2475]
[1721164475899,6.2454,160.12,160.07,1.24918077]
[1721164476109,6.2454,160.12,160.08,1.24917875]
[1721164477282,6.2454,160.12,160.07,1.24917927]
[1721164477480,6.2454,160.12,160.08,1.24917932]
[1721164477989,6.2454,160.12,160.07,1.24917907]
[1721164478181,6.2454,160.12,160.08,1.24914118]
[1721164478479,6.245,160.13,160.07,7.4963411]
[1721164478677,26.2453,160.12,160.08,45.0]
[1721164479283,26.2453,160.12,160.07,51.2472]
[1721164479907,6.2453,160.12,160.07,51.2472]
[1721164480089,15.6076,160.18,160.09,16.2322]
[1721164480285,15.01,160.14,160.1,45.17]
[1721164480486,15.01,160.14,160.1,51.4159]
[1721164480995,15.01,160.14,160.1,52.66477366]
[1721164481200,15.01,160.14,160.1,51.4159]
[1721164481806,15.01,160.14,160.11,1.24887372]
[1721164482304,6.2446,160.14,160.1,45.17]
[1721164482811,6.2442,160.15,160.1,45.17]
[1721164483286,6.2442,160.15,160.1,51.4159]
[1721164485812,6.2442,160.15,160.1,45.17]
[1721164486113,6.2445,160.14,160.1,45.17]
[1721164486300,0.5,160.17,160.09,16.2322]
[1721164486301,15.6097,160.16,160.09,16.2322]
[1721164486494,0.5,160.15,160.1,1.24897035]
[1721164486697,6.245,160.13,160.11,1.24896836]
[1721164486909,6.2445,160.14,160.11,1.24896836]
[1721164487512,6.2445,160.14,160.09,22.4786]
[1721164487708,6.2445,160.14,160.1,0.17]
[1721164487891,6.2445,160.14,160.1,45.17]
[1721164489693,0.5,160.18,160.11,1.24888203]
[1721164489694,6.2442,160.15,160.11,1.24888203]
[1721164491319,6.2446,160.14,160.11,1.24888203]
[1721164492012,6.2442,160.15,160.11,1.24888203]
[1721164492615,6.2442,160.15,160.1,45.17]
[1721164492820,0.5,160.18,160.1,45.17]
[1721164492821,6.2446,160.14,160.1,45.17]
[1721164493503,6.2442,160.15,160.1,45.17]
[1721164493706,6.2442,160.15,160.11,1.24882644]
[1721164494103,6.2446,160.14,160.1,45.17]
[1721164494290,6.2449,160.13,160.1,45.17]
[1721164495096,6.2446,160.14,160.1,45.17]
[1721164495495,15.609,160.17,160.1,45.17]
[1721164495691,15.609,160.17,160.09,16.2322]
[1721164495692,20.5,160.16,160.09,16.2322]
[1721164496409,6.2459,160.11,160.09,16.2322]
[1721164496918,6.246,160.1,160.09,16.2322]
[1721164498195,6.2458,160.11,160.09,61.2322]
[1721164499630,6.2454,160.12,160.09,61.2322]
[1721164499923,6.2457,160.11,160.09,61.2322]
[1721164500732,0.5,160.14,160.06,28.3791623]
[1721164500733,0.5,160.1,160.06,6.5131623]
[1721164501028,6.2472,160.07,160.06,6.5131623]
[1721164501334,6.2469,160.08,160.06,6.5131623]
[1721164501821,6.2454,160.12,160.06,14.00987503]
[1721164502026,20.0,160.11,160.06,12.7604623]
[1721164502206,6.2454,160.12,160.07,45.0]
[1721164502410,6.2458,160.11,160.07,45.0]
[1721164502594,6.2454,160.12,160.07,51.2471]
[1721164502999,30.01,160.14,160.07,51.2469]
[1721164503206,26.2452,160.13,160.07,51.2469]
[1721164503517,26.245,160.13,160.07,45.0]
[1721164503717,6.2454,160.12,160.07,51.2471]
[1721164503923,6.2448,160.14,160.07,60.6176]
[1721164504140,6.2448,160.14,160.09,6.2462]
[1721164504424,15.01,160.13,160.1,46.2489481]
[1721164504605,15.01,160.13,160.11,1.24896895]
[1721164505109,21.2549,160.13,160.11,1.24896895]
[1721164506010,15.01,160.13,160.1,45.0]
[1721164506319,15.01,160.12,160.09,45.0]
[1721164506700,15.51,160.16,160.09,45.0]
[1721164506701,6.2448,160.14,160.09,51.2463]
[1721164506901,15.01,160.12,160.08,51.4168]
[1721164507320,0.5,160.19,160.08,60.18]
[1721164507525,15.01,160.15,160.09,32.04481967]
[1721164507728,15.01,160.15,160.1,51.5224]
[1721164507927,15.01,160.11,160.1,45.0]
[1721164508107,21.2559,160.11,160.07,6.51817436]
[1721164508309,21.2553,160.13,160.08,46.24913702]
[1721164508522,21.2553,160.13,160.08,52.49563702]
[1721164508726,21.2553,160.13,160.08,51.2465]
[1721164509434,21.2553,160.12,160.08,45.0]
[1721164510723,6.2457,160.11,160.08,45.0]
[1721164510921,0.5,160.15,160.08,45.0]
[1721164510922,21.2561,160.1,160.08,45.0]
[1721164511227,15.01,160.09,160.07,6.51817436]
[1721164511713,15.01,160.09,160.05,22.2315]
[1721164511919,6.2472,160.08,160.05,22.2315]
[1721164512106,21.2565,160.09,160.05,22.2315]
[1721164513316,15.01,160.08,160.06,45.0]
[1721164513625,21.257,160.08,160.06,45.0]
[1721164514230,6.2465,160.09,160.06,45.0]
[1721164514532,0.5,160.11,160.06,45.0]
[1721164514533,15.01,160.08,160.06,45.0]
[1721164514732,15.01,160.08,160.06,46.24937914]
[1721164515035,15.01,160.09,160.06,46.24937914]
[1721164515235,21.2566,160.09,160.06,46.24937914]
[1721164515941,6.2472,160.07,160.06,45.0]
[1721164516313,21.2569,160.08,160.06,45.0]
[1721164517436,6.2469,160.08,160.06,45.0]
[1721164517734,15.6114,160.14,160.06,45.0]
[1721164517939,15.01,160.1,160.07,1.24918416]
[1721164518235,21.2563,160.1,160.07,1.24922688]
[1721164518537,21.2565,160.09,160.06,45.0]
[1721164518738,15.01,160.09,160.06,45.0]
[1721164518921,15.01,160.1,160.07,1.24926561]
[1721164519239,15.01,160.09,160.06,45.0]
[1721164519627,15.01,160.1,160.06,45.0]
[1721164521323,21.2561,160.1,160.06,45.0]
[1721164521721,15.01,160.1,160.06,45.0]
[1721164521925,15.01,160.1,160.07,1.24918373]
[1721164522117,15.01,160.11,160.08,1.24918373]
[1721164522427,6.2454,160.12,160.08,1.24918373]
[1721164522428,21.2554,160.12,160.08,1.24918373]
[1721164522619,6.2457,160.11,160.08,1.24918373]
[1721164523128,6.2457,160.11,160.09,1.24913098]
[1721164523329,6.2457,160.11,160.07,1.24913297]
[1721164523520,6.2457,160.11,160.08,1.24913291]
[1721164525042,21.2553,160.12,160.09,0.17]
[1721164525249,21.2549,160.13,160.09,0.17]
[1721164525737,15.01,160.13,160.09,0.34]
[1721164526132,21.2545,160.14,160.09,0.34]
[1721164526348,6.2449,160.13,160.09,0.34]
[1721164527338,6.2449,160.13,160.09,1.58892046]
[1721164527519,6.244,160.16,160.11,6.2454]
[1721164527714,0.5,160.19,160.12,52.4938765]
[1721164528028,6.2433,160.17,160.12,52.4938765]
[1721164528234,6.2433,160.17,160.12,67.5038765]
[1721164528235,15.01,160.17,160.12,67.5038765]
[1721164528541,21.253,160.18,160.13,6.5848]
[1721164528742,21.253,160.18,160.14,45.0]
[1721164528943,15.01,160.17,160.14,45.0]
[1721164529150,0.5,160.23,160.15,1.24860679]
[1721164529348,15.01,160.2,160.16,15.3746]
[1721164529554,15.01,160.2,160.17,46.24843924]
[1721164529843,0.5,160.23,160.18,1.24843924]
[1721164530049,15.01,160.2,160.17,45.0]
[1721164530626,21.2515,160.22,160.18,1.24838461]
[1721164532047,6.2415,160.22,160.18,1.24838461]
[1721164532344,21.251,160.23,160.18,1.24838461]
[1721164533153,0.5,160.26,160.19,15.01]
[1721164533450,15.01,160.23,160.2,46.24811569]
[1721164533751,15.01,160.23,160.2,1.24811569]
[1721164534337,15.01,160.23,160.19,45.0]
[1721164534667,4.6134,160.29,160.19,45.0]
[1721164534668,15.01,160.25,160.2,15.18]
[1721164534952,15.01,160.25,160.21,51.4117]
[1721164535249,7.42461962,160.31,160.22,31.63257184]
[1721164535452,6.2387,160.29,160.23,21.5909]
[1721164535743,0.5,160.32,160.24,52.86099976]
[1721164535925,21.2487,160.29,160.25,0.34]
[1721164536319,15.01,160.29,160.25,6.5801]
[1721164536530,15.01,160.29,160.26,46.24769148]
[1721164536842,15.01,160.29,160.27,1.24769148]
[1721164537022,15.01,160.29,160.26,45.0]
[1721164537216,15.01,160.29,160.25,45.34]
[1721164537451,21.2484,160.3,160.26,1.24767987]
[1721164537644,21.2484,160.3,160.27,1.24763315]
[1721164538226,15.01,160.29,160.27,1.24763315]
[1721164538742,15.01,160.29,160.28,1.24767217]
[1721164539044,21.2484,160.3,160.25,51.58]
[1721164539265,21.2484,160.3,160.25,66.59]
[1721164539743,21.2484,160.3,160.26,1.2476256]
[1721164539946,21.2484,160.3,160.25,66.59]
[1721164540831,15.01,160.31,160.25,66.59]
[1721164541152,15.01,160.31,160.27,6.2394]
[1721164541387,15.01,160.31,160.28,46.41751933]
[1721164541853,15.01,160.31,160.29,45.0]
[1721164542050,15.01,160.31,160.3,1.24752377]
[1721164542533,15.01,160.31,160.28,1.41751893]
[1721164542850,15.01,160.31,160.28,17.93577553]
[1721164543157,6.2372,160.33,160.29,45.0]
[1721164543333,15.01,160.32,160.29,45.0]
[1721164548348,15.01,160.32,160.29,44.5302]
[1721164548897,15.01,160.33,160.29,50.7688]
[1721164549077,15.01,160.33,160.29,44.5302]
[1721164550961,21.2471,160.33,160.29,44.5302]
[1721164551171,15.01,160.32,160.29,44.5302]
[1721164551471,15.01,160.33,160.29,44.5302]
[1721164551673,15.01,160.33,160.29,50.7687]
[1721164552260,0.5,160.39,160.3,1.24739785]
[1721164552562,15.01,160.35,160.32,6.2374]
[1721164552766,15.01,160.35,160.33,45.0]
[1721164553774,15.01,160.36,160.33,45.0]
[1721164554758,15.01,160.36,160.32,45.0]
[1721164555482,6.2356,160.37,160.32,51.2374]
[1721164555666,15.01,160.36,160.32,51.2374]
[1721164556187,15.01,160.36,160.33,6.2371]
[1721164556408,15.01,160.36,160.34,45.0]
[1721164556685,21.2461,160.36,160.32,45.0]
[1721164556868,15.01,160.36,160.33,1.24717256]
[1721164557269,15.01,160.36,160.32,51.2372]
[1721164557878,6.2348,160.39,160.33,1.41717261]
[1721164558075,15.01,160.37,160.34,6.2366]
[1721164558278,15.01,160.37,160.35,45.0]
[1721164558463,6.2349,160.39,160.35,45.0]
[1721164558666,15.01,160.37,160.35,45.0]
[1721164558866,15.01,160.38,160.35,45.0]
[1721164559051,15.01,160.37,160.34,51.2366]
[1721164559253,15.01,160.37,160.34,45.0]
[1721164559679,6.2348,160.39,160.34,51.2366]
[1721164559857,21.2452,160.38,160.34,45.0]
[1721164560059,1.3171819,160.43,160.34,45.0]
[1721164560258,15.01,160.38,160.34,51.2367]
[1721164560490,15.01,160.37,160.34,45.0]
[1721164560677,15.01,160.35,160.31,6.5906]
[1721164560862,15.01,160.35,160.32,1.24725034]
[1721164561062,15.01,160.35,160.31,6.5906]
[1721164561583,15.01,160.36,160.32,1.24725034]
[1721164561782,15.01,160.36,160.31,6.5906]
[1721164561988,6.2341,160.41,160.36,6.2356]
[1721164562287,6.2339,160.42,160.37,45.0]
[1721164562490,0.8171819,160.43,160.38,16.25673962]
[1721164562670,0.8171819,160.43,160.39,51.2346]
[1721164562987,0.8171819,160.43,160.4,1.24667036]
[1721164563568,7.0503819,160.43,160.4,1.24667036]
[1721164564680,0.8171819,160.43,160.4,1.24667036]
[1721164564986,0.8171819,160.43,160.36,0.17]
[1721164564987,30.02,160.41,160.32,16.6505]
[1721164565196,6.2368,160.34,160.32,16.6505]
[1721164565365,15.01,160.33,160.28,16.6505]
[1721164565570,15.01,160.3,160.28,16.6505]
[1721164566385,6.2371,160.33,160.28,16.6505]
[1721164566769,6.2376,160.32,160.28,16.6505]
[1721164567865,6.2381,160.31,160.28,16.6505]
[1721164568590,6.2381,160.31,160.26,6.51077509]
[1721164569771,6.2381,160.31,160.27,45.0]
[1721164570295,6.2384,160.3,160.27,45.0]
[1721164570496,6.2384,160.3,160.26,6.51077509]
[1721164570497,0.5,160.33,160.26,6.51077509]
[1721164570792,6.2383,160.3,160.26,6.51077509]
[1721164571795,6.2388,160.29,160.27,45.0]
[1721164571989,30.45,160.32,160.27,45.0]
[1721164572191,6.2394,160.27,160.26,6.51077509]
[1721164572381,6.2418,160.21,160.19,15.3792]
[1721164572585,6.2413,160.23,160.19,15.3792]
[1721164573801,30.45,160.25,160.19,15.3792]
[1721164574004,6.2417,160.22,160.19,15.3792]
[1721164574172,6.2419,160.21,160.19,15.3792]
[1721164575298,6.2419,160.21,160.17,12.81899265]
[1721164575503,0.5,160.2,160.15,15.3792]
[1721164575801,6.2429,160.19,160.15,15.3792]
[1721164575994,26.2418,160.21,160.16,1.24850943]
[1721164577376,20.0,160.21,160.16,46.24850943]
[1721164577574,6.2417,160.22,160.16,52.49220943]
[1721164577900,20.0,160.21,160.16,51.2437]
[1721164578102,6.2417,160.22,160.16,51.2437]
[1721164578402,6.2417,160.22,160.17,7.66142825]
[1721164578576,0.5,160.24,160.18,45.0]
[1721164578777,29.95,160.22,160.16,45.0]
[1721164579085,6.242,160.21,160.16,46.2483866]
[1721164579801,6.2423,160.2,160.16,46.2483866]
[1721164580305,6.2423,160.2,160.16,45.0]
[1721164580514,6.2419,160.21,160.16,45.0]
[1721164580696,36.1915,160.22,160.17,1.24838525]
[1721164580882,36.1915,160.22,160.16,45.0]
[1721164581081,6.2418,160.21,160.17,0.17]
[1721164581494,6.2423,160.2,160.17,0.17]
[1721164581803,6.2426,160.19,160.16,1.24845979]
[1721164582184,29.95,160.22,160.16,1.24845979]
[1721164582485,6.2425,160.2,160.15,15.3792]
[1721164583207,6.2423,160.2,160.16,45.0]
[1721164583404,6.2423,160.2,160.16,46.24849723]
[1721164583781,6.2423,160.2,160.16,45.0]
[1721164584112,6.2423,160.2,160.17,1.24850453]
[1721164584399,6.2423,160.2,160.16,45.0]
[1721164584704,6.2423,160.2,160.17,1.24848083]
[1721164585104,6.2418,160.21,160.17,1.24848083]
[1721164585281,6.2418,160.21,160.18,1.2484165]
[1721164585806,6.2423,160.2,160.18,1.2484165]
[1721164586006,6.2423,160.2,160.16,45.0]
[1721164586582,36.1916,160.22,160.16,51.2434]
[1721164586983,29.95,160.22,160.18,6.2427]
[1721164587179,26.2407,160.24,160.19,51.2424]
[1721164587486,6.2408,160.24,160.19,51.2424]
[1721164588010,6.2407,160.24,160.19,45.0]
[1721164588201,6.2407,160.24,160.19,51.2423]
[1721164591906,6.2414,160.22,160.19,45.0]
[1721164592113,6.2411,160.23,160.19,45.0]
[1721164592608,29.95,160.25,160.19,45.0]
[1721164592805,6.2415,160.22,160.19,45.0]
[1721164592998,6.2415,160.22,160.18,45.0]
[1721164593492,6.2415,160.22,160.18,46.24834177]
[1721164594008,6.2415,160.22,160.18,45.0]
[1721164594708,6.2418,160.21,160.18,45.0]
[1721164595011,29.95,160.22,160.17,45.0]
[1721164595197,0.5,160.21,160.16,45.0]
[1721164595803,6.2424,160.2,160.16,45.0]
[1721164596000,6.2424,160.2,160.15,37.2328]
[1721164596210,6.2424,160.2,160.15,38.48125162]
[1721164596588,29.95,160.22,160.15,32.23725162]
[1721164596791,36.1916,160.22,160.17,6.2432]
[1721164597101,36.1916,160.22,160.17,7.49161918]
[1721164597302,36.1916,160.22,160.18,46.24841918]
[1721164597915,6.2418,160.21,160.18,46.24841918]
[1721164598211,6.2414,160.23,160.18,7.49131918]
[1721164598512,6.2407,160.24,160.19,51.4125]
[1721164598890,6.241,160.23,160.19,51.4125]
[1721164599107,29.95,160.25,160.2,7.49030051]
[1721164599320,36.1903,160.25,160.21,45.0]
[1721164599490,6.2406,160.24,160.21,45.0]
[1721164599893,6.2406,160.24,160.2,51.2421]
[1721164600312,6.2406,160.24,160.2,45.0]
[1721164602596,6.2411,160.23,160.2,45.0]
[1721164603295,6.2411,160.23,160.21,1.2481866]
[1721164604710,6.2411,160.23,160.2,45.0]
[1721164605304,6.2414,160.22,160.2,45.0]
[1721164605492,6.241,160.23,160.2,45.0]
[1721164605693,6.241,160.23,160.21,1.2481889]
[1721164606421,6.241,160.23,160.19,45.17]
[1721164608519,0.5,160.27,160.19,45.17]
[1721164608520,45.5483,160.28,160.21,15.7836]
[1721164608721,45.5483,160.28,160.22,1.24801539]
[1721164608951,45.5483,160.28,160.22,46.24801539]
[1721164609128,6.2398,160.27,160.22,46.24801539]
[1721164609314,6.2398,160.27,160.22,52.48931539]
[1721164609807,6.2398,160.26,160.22,46.24801539]
[1721164610321,14.99,160.24,160.22,46.24801539]
[1721164612203,6.2395,160.27,160.22,52.48921539]
[1721164612405,6.2395,160.27,160.23,0.17]
[1721164612725,6.2395,160.27,160.23,1.41787699]
[1721164613118,6.2391,160.28,160.23,7.65867699]
[1721164613295,6.2388,160.29,160.24,51.2406]
[1721164613496,6.2393,160.28,160.25,1.24777157]
[1721164613900,29.97,160.31,160.25,7.48797157]
[1721164614095,23.36027517,160.34,160.26,45.17]
[1721164614096,0.5,160.33,160.26,45.17]
[1721164614299,6.2372,160.33,160.28,22.3257]
[1721164614601,6.2372,160.33,160.29,46.24747712]
[1721164614800,6.2372,160.33,160.3,1.2474244]
[1721164615231,0.5,160.36,160.3,1.2474244]
[1721164615400,6.237,160.34,160.3,1.2474244]
[1721164615608,6.2371,160.33,160.3,1.2474244]
[1721164615828,0.5,160.36,160.29,45.0]
[1721164616022,0.5,160.36,160.3,1.2474248]
[1721164616538,6.2372,160.33,160.3,1.2474248]
[1721164616717,0.5,160.36,160.3,1.2474248]
[1721164616910,29.97,160.42,160.31,1.58726962]
[1721164617106,6.2352,160.38,160.31,17.18176962]
[1721164617433,6.2351,160.39,160.33,6.237]
[1721164617608,6.2353,160.38,160.34,46.41700803]
[1721164618431,6.2356,160.37,160.34,46.41700803]
[1721164618640,6.2356,160.37,160.34,0.17]
[1721164619140,6.2351,160.39,160.34,0.17]
[1721164619432,6.2351,160.39,160.34,1.41707112]
[1721164619635,6.2352,160.38,160.34,1.41707112]
[1721164620220,6.2347,160.4,160.34,7.65347112]
[1721164620536,26.2349,160.39,160.35,45.0]
[1721164620735,26.2349,160.39,160.36,1.24699485]
[1721164620903,26.2349,160.39,160.36,7.48279485]
[1721164620904,20.0,160.39,160.36,7.48279485]
[1721164621108,6.2346,160.4,160.37,45.0]
[1721164621308,26.2348,160.39,160.35,45.0]
[1721164621507,6.2348,160.39,160.35,45.0]
[1721164622432,20.0,160.41,160.35,45.0]
[1721164622433,20.5,160.41,160.35,45.0]
[1721164622638,6.2351,160.39,160.35,45.0]
[1721164624017,6.2356,160.37,160.35,45.0]
[1721164626143,6.2352,160.38,160.35,45.0]
[1721164626348,29.97,160.39,160.35,45.0]
[1721164626516,6.2358,160.37,160.34,16.087]
[1721164626846,6.236,160.36,160.34,16.087]
[1721164627215,6.2356,160.37,160.34,16.087]
[1721164627729,6.2359,160.36,160.34,16.087]
[1721164628125,6.2357,160.37,160.34,16.087]
[1721164628441,6.2353,160.38,160.34,16.087]
[1721164628978,6.2356,160.37,160.34,16.087]
[1721164630236,6.2359,160.36,160.34,17.33417383]
[1721164630434,6.2356,160.37,160.34,17.33417383]
[1721164630644,6.2356,160.37,160.34,16.087]
[1721164630830,30.47,160.39,160.34,16.087]
[1721164630831,6.2359,160.36,160.34,16.087]
[1721164631026,6.2356,160.37,160.34,16.087]
[1721164631238,30.47,160.36,160.3,15.3791]
[1721164631532,30.47,160.36,160.28,6.5305]
[1721164631533,6.2381,160.31,160.28,6.5305]
[1721164631853,6.2376,160.32,160.28,7.77809484]
[1721164632229,6.2376,160.32,160.26,28.14416371]
[1721164632230,0.5,160.32,160.26,21.90456371]
[1721164632622,6.2389,160.29,160.26,21.90456371]
[1721164632947,29.97,160.3,160.26,21.90456371]
[1721164633141,36.2085,160.3,160.26,21.90456371]
[1721164633528,6.2387,160.29,160.26,21.90456371]
[1721164634051,29.97,160.3,160.26,21.90456371]
[1721164634052,36.2083,160.3,160.26,21.90456371]
[1721164634641,29.97,160.3,160.26,21.90456371]
[1721164634834,6.2393,160.28,160.26,15.3791]
[1721164635163,36.2084,160.3,160.26,15.3791]
[1721164636053,6.2388,160.29,160.26,15.3791]
[1721164639532,29.97,160.3,160.27,46.24773164]
[1721164639754,36.2083,160.3,160.27,46.24773164]
[1721164640849,6.2387,160.29,160.27,45.0]
[1721164641238,6.239,160.28,160.27,45.0]
[1721164642259,21.219,160.28,160.27,45.0]
[1721164643543,14.98,160.28,160.27,45.0]
[1721164644556,21.219,160.28,160.27,45.0]
[1721164645658,14.98,160.28,160.27,46.24777573]
[1721164647565,21.219,160.28,160.27,46.24777573]
[1721164650175,15.5898,160.37,160.27,46.24774561]
[1721164650376,14.98,160.29,160.28,6.579]
[1721164650670,14.98,160.29,160.28,45.34]
[1721164650862,0.5,160.36,160.28,45.34]
[1721164650863,6.2368,160.34,160.29,6.3246]
[1721164651072,14.98,160.31,160.3,51.5783]
[1721164651454,14.98,160.31,160.3,45.34]
[1721164651975,14.98,160.31,160.3,51.5783]
[1721164652276,0.5,160.39,160.3,45.34]
[1721164652447,29.94,160.38,160.31,1.24708976]
[1721164652644,29.94,160.38,160.32,16.9663]
[1721164652847,29.94,160.38,160.33,46.24710191]
[1721164653061,6.2358,160.37,160.33,46.24710191]
[1721164654172,6.2356,160.37,160.34,1.41711317]
[1721164654483,6.236,160.36,160.33,45.0]
[1721164656369,6.2356,160.37,160.33,45.0]
[1721164657366,6.2356,160.37,160.34,1.4171116]
[1721164661579,6.236,160.36,160.33,45.0]
[1721164662257,30.44,160.39,160.32,16.6263]
[1721164662258,6.2366,160.35,160.32,16.6263]
[1721164662451,0.5,160.38,160.32,16.6263]
[1721164662452,29.94,160.36,160.32,16.6263]
[1721164662640,6.2364,160.35,160.33,1.24728418]
[1721164662840,6.2364,160.35,160.32,16.6263]
[1721164663077,6.2364,160.35,160.33,1.24728781]
[1721164663577,6.2364,160.35,160.32,16.6263]
[1721164663760,0.5,160.38,160.29,6.3246]
[1721164663947,29.94,160.34,160.28,21.68590098]
[1721164664267,20.5,160.33,160.28,21.68590098]
[1721164664577,20.5,160.33,160.29,1.24758611]
[1721164664785,6.2379,160.31,160.28,21.68590098]
[1721164665071,6.2379,160.31,160.29,1.24758553]
[1721164665291,6.2379,160.31,160.29,45.0]
[1721164665971,6.2379,160.31,160.29,46.2476009]
[1721164666164,20.0,160.33,160.29,45.0]
[1721164666354,0.5,160.37,160.29,66.8349]
[1721164666355,6.2368,160.34,160.29,66.8349]
[1721164666551,29.94,160.36,160.29,60.5963]
[1721164666763,6.2368,160.34,160.29,66.8349]
[1721164667171,26.2364,160.35,160.3,7.82558873]
[1721164667368,6.2368,160.34,160.31,45.0]